bitfinex-derivatives/quotes_BTCF0:USTF0_20250906
["timestamp","ask_amount","ask_price","bid_price","bid_amount"]
[1757139678449,1.24889868,110810.0,110800.0,0.05938807]
[1757139688159,1.24889868,110810.0,110800.0,0.03789807]
[1757139688856,1.24889868,110810.0,110800.0,0.05926807]
[1757139689252,1.24889868,110810.0,110800.0,0.02499807]
[1757139690962,0.43309868,110810.0,110800.0,0.02499807]
[1757139691161,1.24889868,110810.0,110800.0,0.02499807]
[1757139692461,0.43309868,110810.0,110800.0,0.02499807]
[1757139692661,1.24889868,110810.0,110800.0,0.02499807]
[1757139692860,1.24889868,110810.0,110800.0,0.06024807]
[1757139693562,0.43309868,110810.0,110800.0,0.06024807]
[1757139693763,1.24889868,110810.0,110800.0,0.06024807]
[1757139694462,0.43309868,110810.0,110800.0,0.06024807]
[1757139694762,1.24889868,110810.0,110800.0,0.06024807]
[1757139694965,0.43309868,110810.0,110800.0,0.06024807]
[1757139695262,1.24889868,110810.0,110800.0,0.06024807]
[1757139695965,0.43309868,110810.0,110800.0,0.06024807]
[1757139696167,1.24889868,110810.0,110800.0,0.06024807]
[1757139696466,0.43309868,110810.0,110800.0,0.06024807]
[1757139696660,1.24889868,110810.0,110800.0,0.06024807]
[1757139696966,0.43309868,110810.0,110800.0,0.06024807]
[1757139697154,1.24889868,110810.0,110800.0,0.06024807]
[1757139697766,0.43309868,110810.0,110800.0,0.06024807]
[1757139697965,1.24889868,110810.0,110800.0,0.06024807]
[1757139699466,1.21260092,110810.0,110800.0,0.06024807]
[1757139720483,1.21260092,110810.0,110800.0,0.03887807]
[1757139727191,1.21256092,110810.0,110800.0,0.06199807]
[1757139734297,1.20456092,110810.0,110800.0,0.06199807]
[1757139734496,1.21256092,110810.0,110800.0,0.06299807]
[1757139741100,0.39680092,110810.0,110800.0,0.06299807]
[1757139741503,1.21252092,110810.0,110800.0,0.06299807]
[1757139744305,1.21452092,110810.0,110800.0,0.06299807]
[1757139753819,0.39880092,110810.0,110800.0,0.06299807]
[1757139754020,1.21448092,110810.0,110800.0,0.06299807]
[1757139759426,1.25079104,110810.0,110800.0,0.06299807]
[1757139760929,0.92392145,110810.0,110800.0,0.06299807]
[1757139761130,1.25079104,110810.0,110800.0,0.06299807]
[1757139762431,1.22769022,110810.0,110800.0,0.06299807]
[1757139762630,1.24937201,110810.0,110800.0,0.06299807]
[1757139768633,0.10682242,110810.0,110800.0,0.06299807]
[1757139768833,0.92250242,110810.0,110800.0,0.06299807]
[1757139769034,1.24937201,110810.0,110800.0,0.06299807]
[1757139804264,1.24937201,110810.0,110800.0,0.03987807]
[1757139805667,1.24937201,110810.0,110800.0,0.06189807]
[1757139821488,1.21305953,110810.0,110800.0,0.06189807]
[1757139837695,1.21305953,110810.0,110800.0,0.03987807]
[1757139837992,1.21305953,110810.0,110800.0,0.02599807]
[1757139849102,0.39737953,110810.0,110800.0,0.02599807]
[1757139849302,1.21293953,110810.0,110800.0,0.02599807]
[1757139855910,0.39737953,110810.0,110800.0,0.02599807]
[1757139856109,1.21293953,110810.0,110800.0,0.02599807]
[1757139883427,1.24928835,110810.0,110800.0,0.02599807]
[1757139917049,1.57619428,110810.0,110800.0,0.02599807]
[1757139926165,1.24928835,110810.0,110800.0,0.02599807]
[1757139926666,1.57619428,110810.0,110800.0,0.02599807]
[1757139928561,1.24928835,110810.0,110800.0,0.02599807]
[1757139930164,1.24901618,110810.0,110800.0,0.02599807]
[1757139930766,1.57592211,110810.0,110800.0,0.02599807]
[1757139932368,1.24901618,110810.0,110800.0,0.02599807]
[1757139934762,1.57592211,110810.0,110800.0,0.02599807]
[1757139940765,1.24901618,110810.0,110800.0,0.02599807]
[1757139943473,1.21270724,110810.0,110800.0,0.02599807]
[1757139945276,1.19129762,110810.0,110800.0,0.02599807]
[1757139945475,1.21296625,110810.0,110800.0,0.02599807]
[1757139952379,1.21696625,110810.0,110800.0,0.02599807]
[1757139957779,0.39740625,110810.0,110800.0,0.02599807]
[1757139958079,1.21660625,110810.0,110800.0,0.02599807]
[1757139960883,0.39740625,110810.0,110800.0,0.02599807]
[1757139961183,1.21676625,110810.0,110800.0,0.02599807]
[1757139970290,0.39740625,110810.0,110800.0,0.02599807]
[1757139970493,1.21660625,110810.0,110800.0,0.02599807]
[1757139975319,1.21660625,110810.0,110800.0,0.03900807]
[1757139976804,0.39740625,110810.0,110800.0,0.06166807]
[1757139977206,1.21616625,110810.0,110800.0,0.06166807]
[1757139977508,0.39740625,110810.0,110800.0,0.06166807]
[1757139977704,1.21612625,110810.0,110800.0,0.06166807]
[1757139983609,0.39740625,110810.0,110800.0,0.06166807]
[1757139983808,1.21584625,110810.0,110800.0,0.06166807]
[1757139985809,0.39740625,110810.0,110800.0,0.06166807]
[1757139986012,1.21576625,110810.0,110800.0,0.06166807]
[1757139987012,0.39740625,110810.0,110800.0,0.06166807]
[1757139987211,1.21568625,110810.0,110800.0,0.06166807]
[1757139987512,0.39740625,110810.0,110800.0,0.06166807]
[1757139987707,0.10680926,110810.0,110800.0,0.31166807]
[1757139987905,0.90350063,110810.0,110800.0,0.66729021]
[1757139988211,0.90366063,110810.0,110800.0,0.66729021]
[1757139988613,0.90366063,110810.0,110800.0,0.37669322]
[1757139989409,0.90366063,110810.0,110800.0,0.31166807]
[1757139989608,0.89766063,110810.0,110800.0,0.31166807]
[1757139989806,0.90266063,110810.0,110800.0,0.31166807]
[1757139990912,0.89466063,110810.0,110800.0,0.31066807]
[1757139991116,0.90266063,110810.0,110800.0,0.31166807]
[1757139991706,0.90258063,110810.0,110800.0,0.31166807]
[1757139991909,0.89458063,110810.0,110800.0,0.31066807]
[1757139992109,0.90158063,110810.0,110800.0,0.31166807]
[1757139993619,0.08314063,110810.0,110800.0,0.31166807]
[1757139993818,0.90138063,110810.0,110800.0,0.31166807]
[1757139994320,0.08314063,110810.0,110800.0,0.31166807]
[1757139994517,0.8182,110810.0,110800.0,0.66729021]
[1757139994811,0.8163,110810.0,110800.0,0.66729021]
[1757139995019,0.8993917,110820.0,110810.0,0.03603]
[1757139995414,0.8993917,110820.0,110810.0,0.04854679]
[1757139995605,0.8993517,110820.0,110810.0,0.04854679]
[1757139995807,0.81836,110820.0,110810.0,0.04854679]
[1757139996112,0.81836,110820.0,110810.0,0.05305679]
[1757139996521,0.29059699,110830.0,110820.0,0.03603]
[1757139996814,1.10887699,110830.0,110820.0,0.03603]
[1757139997206,0.4444,110850.0,110840.0,0.01303]
[1757139997415,1.59598043,110850.0,110840.0,0.04854679]
[1757139997616,1.59614043,110850.0,110840.0,0.04854679]
[1757139997816,0.77770043,110850.0,110840.0,0.04854679]
[1757139998019,1.6051546,110850.0,110840.0,0.04854679]
[1757139998520,1.6051546,110850.0,110840.0,0.04254679]
[1757139998920,0.7867146,110850.0,110840.0,0.04254679]
[1757139999223,1.675776,110850.0,110840.0,0.04254679]
[1757139999523,1.675736,110850.0,110840.0,0.04254679]
[1757140000421,0.857376,110850.0,110840.0,0.04254679]
[1757140000614,0.862376,110850.0,110840.0,0.04254679]
[1757140000814,1.65906256,110850.0,110840.0,0.04254679]
[1757140002617,0.84078256,110850.0,110840.0,0.04254679]
[1757140002812,1.65898256,110850.0,110840.0,0.04254679]
[1757140003116,1.36838557,110850.0,110840.0,0.04254679]
[1757140003321,1.65898256,110850.0,110840.0,0.04254679]
[1757140003521,0.43238987,110850.0,110840.0,0.04254679]
[1757140003724,1.22955987,110850.0,110840.0,0.04254679]
[1757140003918,0.41127987,110850.0,110840.0,0.61915109]
[1757140004117,1.22955987,110850.0,110840.0,0.29254679]
[1757140004623,0.41127987,110850.0,110840.0,0.29254679]
[1757140004826,1.22959987,110850.0,110840.0,0.61915109]
[1757140005015,0.08467557,110850.0,110840.0,0.61915109]
[1757140005323,1.22955987,110850.0,110840.0,0.61915109]
[1757140005718,0.41127987,110850.0,110840.0,0.61915109]
[1757140006122,1.22951987,110850.0,110840.0,0.61915109]
[1757140006315,0.90291557,110850.0,110840.0,0.61915109]
[1757140006624,0.08467557,110850.0,110840.0,0.61915109]
[1757140007312,0.90283557,110850.0,110840.0,0.61915109]
[1757140007723,0.90279557,110850.0,110840.0,0.61915109]
[1757140008227,0.90279557,110850.0,110840.0,0.62366109]
[1757140012128,0.0756614,110850.0,110840.0,0.62366109]
[1757140013128,0.0756614,110850.0,110840.0,0.37366109]
[1757140014434,0.005,110850.0,110840.0,0.37366109]
[1757140016827,0.005,110850.0,110840.0,0.04705679]
[1757140016828,0.3532543,110850.0,110840.0,0.04705679]
[1757140017023,1.00367349,110850.0,110840.0,0.04705679]
[1757140017332,0.35046489,110850.0,110840.0,0.04705679]
[1757140017521,0.67706919,110850.0,110840.0,0.04705679]
[1757140018935,0.35046489,110850.0,110840.0,0.04705679]
[1757140019131,0.67706919,110850.0,110840.0,0.04705679]
[1757140019337,0.67706919,110850.0,110840.0,0.37366109]
[1757140019732,0.67706919,110850.0,110840.0,0.04705679]
[1757140020238,0.67706919,110850.0,110840.0,0.37366109]
[1757140021836,0.67706919,110850.0,110840.0,0.04705679]
[1757140023040,0.68106919,110850.0,110840.0,0.04705679]
[1757140024540,0.70266481,110850.0,110840.0,0.04705679]
[1757140026141,0.70266481,110850.0,110840.0,0.37366109]
[1757140026542,1.52158481,110850.0,110840.0,0.37366109]
[1757140028043,0.70266481,110850.0,110840.0,0.37366109]
[1757140028337,0.12606051,110850.0,110840.0,0.37366109]
[1757140028542,0.94490051,110850.0,110840.0,0.37366109]
[1757140030240,0.92325051,110850.0,110840.0,0.37366109]
[1757140030442,0.94490051,110850.0,110840.0,0.37366109]
[1757140033247,0.92330489,110850.0,110840.0,0.37366109]
[1757140033437,0.94494813,110850.0,110840.0,0.37366109]
[1757140034443,0.92330489,110850.0,110840.0,0.37366109]
[1757140039949,0.90165489,110850.0,110840.0,0.37366109]
[1757140042753,0.92390489,110850.0,110840.0,0.37366109]
[1757140043252,0.90165489,110850.0,110840.0,0.37366109]
[1757140043854,0.92390489,110850.0,110840.0,0.37366109]
[1757140044358,0.90165489,110850.0,110840.0,0.37366109]
[1757140044761,0.90165489,110850.0,110840.0,0.43868624]
[1757140047362,0.92390489,110850.0,110840.0,0.43868624]
[1757140050566,0.90165489,110850.0,110840.0,0.43868624]
[1757140050965,0.92390489,110850.0,110840.0,0.43868624]
[1757140051962,0.90165489,110850.0,110840.0,0.43868624]
[1757140052162,0.08281489,110850.0,110840.0,0.43868624]
[1757140052363,0.009,110850.0,110840.0,0.70494442]
[1757140057267,0.009,110850.0,110840.0,1.03154872]
[1757140057773,0.009,110850.0,110840.0,0.70494442]
[1757140059274,0.009,110850.0,110840.0,0.45494442]
[1757140061173,0.009,110850.0,110840.0,0.37366109]
[1757140064176,0.009,110850.0,110840.0,0.43856419]
[1757140064376,0.009,110850.0,110840.0,1.01516849]
[1757140065477,0.009,110850.0,110840.0,0.65211861]
[1757140067677,0.009,110850.0,110840.0,0.94227733]
[1757140068678,0.009,110850.0,110840.0,0.87737423]
[1757140069178,0.009,110850.0,110840.0,0.62737423]
[1757140069678,0.009,110850.0,110840.0,0.04705679]
[1757140069980,0.009,110850.0,110840.0,0.62737423]
[1757140071177,0.009,110850.0,110840.0,1.44581423]
[1757140073584,0.009,110850.0,110840.0,0.62737423]
[1757140073783,0.009,110850.0,110840.0,1.44577423]
[1757140074783,0.009,110850.0,110840.0,1.52705756]
[1757140083689,0.009,110850.0,110840.0,1.23689884]
[1757140087388,0.009,110850.0,110840.0,1.52705756]
[1757140100900,0.009,110850.0,110840.0,0.62737423]
[1757140101199,0.009,110850.0,110840.0,1.44497423]
[1757140102898,0.009,110850.0,110840.0,1.44493423]
[1757140107104,0.009,110850.0,110840.0,1.52610771]
[1757140111298,0.009,110850.0,110840.0,1.23550899]
[1757140116506,0.009,110850.0,110840.0,0.41838899]
[1757140116702,0.03063,110850.0,110840.0,0.12823027]
[1757140116905,0.03063,110850.0,110840.0,0.86437679]
[1757140117104,0.03063,110850.0,110840.0,1.15453551]
[1757140118606,0.03063,110850.0,110840.0,1.23570899]
[1757140118908,0.03063,110850.0,110840.0,0.41838899]
[1757140120207,0.03063,110850.0,110840.0,0.33721551]
[1757140122309,0.03063,110850.0,110840.0,0.41838899]
[1757140126216,0.03063,110850.0,110840.0,0.12823027]
[1757140126518,0.03063,110850.0,110840.0,0.41838899]
[1757140127116,0.009,110850.0,110840.0,0.41838899]
[1757140127518,0.009,110850.0,110840.0,0.45471798]
[1757140133226,0.009,110850.0,110840.0,0.78120569]
[1757140134430,0.009,110850.0,110840.0,0.45471798]
[1757140143037,0.009,110850.0,110840.0,1.27331798]
[1757140146741,0.009,110850.0,110840.0,0.94683027]
[1757140147141,0.009,110850.0,110840.0,1.27331798]
[1757140151842,0.009,110850.0,110840.0,0.45471798]
[1757140152045,0.009,110850.0,110840.0,1.27295798]
[1757140152239,0.009,110850.0,110840.0,0.45471798]
[1757140152544,0.03184,110850.0,110840.0,1.27291798]
[1757140153849,0.009,110850.0,110840.0,1.27291798]
[1757140156546,0.009,110850.0,110840.0,0.94643027]
[1757140156746,0.009,110850.0,110840.0,1.27291798]
[1757140157142,0.009,110850.0,110840.0,1.27275798]
[1757140158448,0.03184,110850.0,110840.0,0.12823027]
[1757140158646,0.009,110850.0,110840.0,1.27275798]
[1757140178567,0.03099,110850.0,110840.0,0.45471798]
[1757140178765,0.03099,110850.0,110840.0,1.27227798]
[1757140183973,0.009,110850.0,110840.0,1.27227798]
[1757140189475,0.009,110850.0,110840.0,1.23597541]
[1757140205991,0.009,110850.0,110840.0,0.94579027]
[1757140206192,0.009,110850.0,110840.0,1.23597541]
[1757140210498,0.009,110850.0,110840.0,1.24479599]
[1757140211898,0.009,110850.0,110840.0,1.23597541]
[1757140228907,0.009,110850.0,110840.0,0.94579027]
[1757140229105,0.009,110850.0,110840.0,1.23597541]
[1757140229807,0.009,110850.0,110840.0,0.94579027]
[1757140230109,0.009,110850.0,110840.0,1.23597541]
[1757140235702,0.009,110850.0,110840.0,0.94579027]
[1757140235902,0.009,110850.0,110840.0,1.23597541]
[1757140236909,0.009,110850.0,110840.0,1.23521541]
[1757140239605,0.009,110850.0,110840.0,0.94503027]
[1757140239807,0.009,110850.0,110840.0,1.23521541]
[1757140249820,0.009,110850.0,110840.0,1.15404193]
[1757140250121,0.009,110850.0,110840.0,1.23515293]
[1757140251419,0.009,110850.0,110840.0,1.59780681]
[1757140253615,0.009,110850.0,110840.0,1.51669581]
[1757140258335,0.009,110850.0,110840.0,1.59780004]
[1757140259320,0.009,110850.0,110840.0,1.51669581]
[1757140263631,0.009,110850.0,110840.0,1.5978046]
[1757140264236,0.009,110850.0,110840.0,1.51669581]
[1757140268830,0.009,110850.0,110840.0,1.59779945]
[1757140279738,0.009,110850.0,110840.0,1.51669581]
[1757140280737,0.0001,110860.0,110840.0,1.51669581]
[1757140280934,0.0001,110860.0,110850.0,0.68945902]
[1757140281135,0.08053441,110870.0,110860.0,0.03662]
[1757140281336,0.08043441,110870.0,110860.0,0.36303951]
[1757140281536,0.0001,110880.0,110860.0,1.2571344]
[1757140281743,0.02213,110880.0,110870.0,0.36303951]
[1757140281945,0.29373968,110880.0,110870.0,0.36303951]
[1757140282136,0.04373968,110880.0,110870.0,0.36753951]
[1757140282339,0.02170968,110880.0,110870.0,0.36753951]
[1757140282537,0.03642,110890.0,110880.0,0.03662]
[1757140282742,0.05802575,110890.0,110880.0,0.36303951]
[1757140283242,0.11774149,110890.0,110880.0,0.36303951]
[1757140283644,0.11774149,110890.0,110880.0,0.3755563]
[1757140290257,0.11774149,110890.0,110880.0,0.70197581]
[1757140290558,0.09571149,110890.0,110880.0,0.76687391]
[1757140290861,0.11774149,110890.0,110880.0,0.76687391]
[1757140291055,0.11774149,110890.0,110880.0,0.4404544]
[1757140291256,0.09571149,110890.0,110880.0,0.3755563]
[1757140291648,0.11774149,110890.0,110880.0,0.3755563]
[1757140293060,0.11774149,110890.0,110880.0,0.70197581]
[1757140294165,0.11774149,110890.0,110880.0,0.3755563]
[1757140300372,0.11774149,110890.0,110880.0,0.3800563]
[1757140301666,0.11774149,110890.0,110880.0,0.05363679]
[1757140301868,0.11774149,110890.0,110880.0,0.3800563]
[1757140303664,0.11774149,110890.0,110880.0,0.70647581]
[1757140304178,0.11774149,110890.0,110880.0,0.77137391]
[1757140307270,0.11774149,110890.0,110880.0,0.11853489]
[1757140307568,0.11774149,110890.0,110880.0,0.77137391]
[1757140307769,0.11774149,110890.0,110880.0,0.11853489]
[1757140308069,0.11774149,110890.0,110880.0,0.77137391]
[1757140310775,0.11774149,110890.0,110880.0,0.11853489]
[1757140310975,0.11774149,110890.0,110880.0,0.77137391]
[1757140312771,0.11774149,110890.0,110880.0,0.4449544]
[1757140313273,0.444161,110890.0,110880.0,0.4449544]
[1757140313477,0.11774149,110890.0,110880.0,0.40857266]
[1757140316673,0.11774149,110890.0,110880.0,0.11853489]
[1757140316878,0.41677926,110890.0,110880.0,0.11853489]
[1757140317179,0.68846107,110890.0,110880.0,0.04023679]
[1757140317574,0.68846107,110890.0,110880.0,0.01701679]
[1757140320284,0.68846107,110890.0,110880.0,0.03886679]
[1757140320484,0.66677926,110890.0,110880.0,0.03886679]
[1757140321081,0.66677926,110890.0,110880.0,0.01701679]
[1757140322184,0.68847541,110890.0,110880.0,0.01701679]
[1757140323185,0.68847541,110890.0,110880.0,0.00301679]
[1757140323484,0.68847541,110890.0,110870.0,0.00013524]
[1757140323681,1.12716777,110880.0,110870.0,0.00013524]
[1757140325481,1.39872436,110880.0,110870.0,0.00013524]
[1757140327482,0.58076436,110880.0,110870.0,0.00013524]
[1757140327786,1.39932436,110880.0,110870.0,0.00013524]
[1757140328681,0.58076436,110880.0,110870.0,0.00013524]
[1757140328979,1.39932436,110880.0,110870.0,0.00013524]
[1757140329291,1.37776777,110880.0,110870.0,0.00013524]
[1757140340292,1.39923448,110880.0,110870.0,0.00013524]
[1757140341492,1.39867448,110880.0,110870.0,0.00013524]
[1757140341688,1.37716777,110880.0,110870.0,0.00013524]
[1757140341894,1.37716777,110880.0,110870.0,0.02269524]
[1757140342294,1.37716777,110880.0,110870.0,0.00013524]
[1757140343194,1.39864755,110880.0,110870.0,0.00013524]
[1757140343395,1.37716777,110880.0,110870.0,0.00013524]
[1757140344397,1.39865501,110880.0,110870.0,0.00013524]
[1757140345195,1.10853724,110880.0,110870.0,0.00013524]
[1757140345398,1.39857501,110880.0,110870.0,0.00013524]
[1757140352003,1.10853724,110880.0,110870.0,0.00013524]
[1757140352204,1.39857501,110880.0,110870.0,0.00013524]
[1757140355406,1.10853724,110880.0,110870.0,0.00013524]
[1757140355608,1.39857501,110880.0,110870.0,0.00013524]
[1757140359314,1.14857501,110880.0,110870.0,0.00013524]
[1757140373423,1.51150122,110880.0,110870.0,0.00013524]
[1757140380826,1.51150122,110880.0,110870.0,0.00463524]
[1757140383529,1.76150122,110880.0,110870.0,0.00463524]
[1757140386428,1.76150122,110880.0,110850.0,0.0134]
[1757140386630,0.33823199,110860.0,110850.0,0.0134]
[1757140386923,1.15543199,110860.0,110850.0,0.03573]
[1757140387836,1.17679735,110860.0,110850.0,0.03573]
[1757140388328,1.15543199,110860.0,110850.0,0.03573]
[1757140404041,0.82895,110860.0,110840.0,0.01322]
[1757140404344,0.85040815,110860.0,110850.0,0.02289]
[1757140404542,0.85030815,110860.0,110850.0,0.03646]
[1757140405443,1.17679014,110860.0,110850.0,0.03646]
[1757140407449,1.17679014,110860.0,110840.0,0.01322]
[1757140407636,0.33823199,110850.0,110840.0,0.03611]
[1757140407835,0.66471398,110850.0,110840.0,0.03611]
[1757140408140,0.33823199,110850.0,110840.0,0.03611]
[1757140410938,0.33823199,110850.0,110840.0,0.10089959]
[1757140415749,1.15535199,110850.0,110840.0,0.10089959]
[1757140419252,0.33823199,110850.0,110840.0,0.10089959]
[1757140419449,1.15535199,110850.0,110840.0,0.10089959]
[1757140420151,0.01175,110850.0,110840.0,0.10089959]
[1757140420351,1.15535199,110850.0,110840.0,0.10089959]
[1757140420847,0.33823199,110850.0,110840.0,0.10089959]
[1757140421052,1.15551199,110850.0,110840.0,0.10089959]
[1757140421252,0.33823199,110850.0,110840.0,0.10089959]
[1757140421548,1.15551199,110850.0,110840.0,0.10089959]
[1757140423852,0.33823199,110850.0,110840.0,0.10089959]
[1757140424044,1.15539199,110850.0,110840.0,0.10089959]
[1757140428452,0.82891,110850.0,110840.0,0.10089959]
[1757140428651,1.15539199,110850.0,110840.0,0.10089959]
[1757140429456,1.15539199,110850.0,110840.0,0.03611]
[1757140433455,1.15539199,110850.0,110840.0,0.10089959]
[1757140435571,1.11919296,110850.0,110840.0,0.10089959]
[1757140447680,0.30203296,110850.0,110840.0,0.10089959]
[1757140447880,1.11919296,110850.0,110840.0,0.10089959]
[1757140449080,0.30203296,110850.0,110840.0,0.10089959]
[1757140449282,1.11919296,110850.0,110840.0,0.10089959]
[1757140455281,0.01175,110850.0,110840.0,0.64118255]
[1757140455587,0.58379,110850.0,110840.0,0.64118255]
[1757140458794,0.58379,110850.0,110840.0,0.57639296]
[1757140460191,0.58379,110850.0,110840.0,0.28611]
[1757140460395,0.58379,110850.0,110840.0,0.57639296]
[1757140460604,0.58379,110850.0,110840.0,0.64127724]
[1757140461589,0.58379,110850.0,110840.0,0.35099428]
[1757140479315,0.58379,110850.0,110840.0,0.10099428]
[1757140487817,0.58379,110850.0,110840.0,0.1195842]
[1757140497424,0.91033168,110850.0,110840.0,0.44612588]
[1757140501220,0.91033168,110850.0,110840.0,0.3812416]
[1757140502122,0.58379,110850.0,110840.0,0.3812416]
[1757140502617,0.91033168,110850.0,110840.0,0.3812416]
[1757140502822,0.91033168,110850.0,110840.0,0.44616451]
[1757140503731,0.91033168,110850.0,110840.0,0.3812416]
[1757140503927,0.91033168,110850.0,110840.0,0.44616449]
[1757140506128,0.33829168,110850.0,110840.0,0.44616449]
[1757140506330,1.15525168,110850.0,110840.0,0.44616449]
[1757140510326,0.01175,110850.0,110840.0,0.44616449]
[1757140510533,1.15525168,110850.0,110840.0,0.44616449]
[1757140510729,0.33829168,110850.0,110840.0,0.44616449]
[1757140514131,0.01175,110850.0,110840.0,0.44616449]
[1757140514337,0.33829168,110850.0,110840.0,0.44616449]
[1757140520838,0.01175,110850.0,110840.0,0.44616449]
[1757140521033,0.33829168,110850.0,110840.0,0.44616449]
[1757140522536,0.82890524,110860.0,110850.0,0.01311]
[1757140522739,1.15534692,110860.0,110850.0,0.36295168]
[1757140525441,1.15534692,110860.0,110850.0,0.42787457]
[1757140531854,0.01188524,110860.0,110850.0,0.42787457]
[1757140532062,0.68093524,110860.0,110850.0,0.42787457]
[1757140532458,0.00013524,110860.0,110850.0,0.93949336]
[1757140532657,0.00013524,110860.0,110850.0,1.020597]
[1757140533562,0.00013524,110860.0,110850.0,0.93949336]
[1757140533756,0.00013524,110860.0,110850.0,1.020597]
[1757140534356,0.00013524,110860.0,110850.0,0.93949336]
[1757140536462,0.00013524,110860.0,110850.0,1.00429315]
[1757140539268,0.00013524,110860.0,110850.0,0.75429315]
[1757140541454,0.01188524,110860.0,110850.0,0.75429315]
[1757140541654,0.00013524,110860.0,110850.0,0.75429315]
[1757140546273,0.00013524,110860.0,110850.0,0.68949336]
[1757140548273,0.0001,110870.0,110850.0,0.68949336]
[1757140548274,0.0001,110870.0,110860.0,0.03535]
[1757140548477,0.0001,110880.0,110870.0,0.03535]
[1757140548674,2.47252317,110890.0,110880.0,0.03535]
[1757140548879,2.47242317,110890.0,110880.0,0.36189168]
[1757140549376,2.72242317,110890.0,110880.0,0.36189168]
[1757140549779,2.39588149,110890.0,110880.0,0.36189168]
[1757140550169,2.72242317,110890.0,110880.0,0.36189168]
[1757140551081,0.97846317,110890.0,110880.0,0.36189168]
[1757140552979,0.97846317,110890.0,110880.0,0.03535]
[1757140553180,0.97846317,110890.0,110880.0,0.36189168]
[1757140556082,0.40192149,110890.0,110880.0,0.36189168]
[1757140556283,0.72846317,110890.0,110880.0,0.36189168]
[1757140557583,0.40192149,110890.0,110880.0,0.03535]
[1757140570792,0.40192149,110890.0,110880.0,0.32539595]
[1757140572792,0.10768149,110890.0,110880.0,0.32539595]
[1757140577297,0.10768149,110890.0,110880.0,0.39014202]
[1757140585793,0.10768149,110890.0,110880.0,0.10009607]
[1757140587004,0.10768149,110890.0,110880.0,0.39014202]
[1757140602330,0.10768149,110890.0,110880.0,0.10009607]
[1757140610626,0.10768149,110890.0,110880.0,0.39014202]
[1757140610828,0.10768149,110890.0,110880.0,0.10009607]
[1757140613433,0.39772744,110890.0,110880.0,0.10009607]
[1757140613629,0.39772744,110890.0,110870.0,0.09572179]
[1757140613831,0.39782744,110890.0,110870.0,0.09572179]
[1757140614032,1.21410744,110890.0,110880.0,0.03698]
[1757140614230,1.21400744,110890.0,110880.0,0.03698]
[1757140619444,1.25031627,110890.0,110880.0,0.03698]
[1757140624544,1.25031627,110890.0,110880.0,0.10172607]
[1757140625042,1.25031627,110890.0,110880.0,0.42808085]
[1757140627649,0.43403627,110890.0,110880.0,0.42808085]
[1757140627944,1.25027627,110890.0,110880.0,0.42808085]
[1757140632053,1.25023627,110890.0,110880.0,0.42808085]
[1757140633448,0.92388149,110890.0,110880.0,0.42808085]
[1757140633649,1.25023627,110890.0,110880.0,0.42808085]
[1757140635853,1.25023627,110890.0,110880.0,0.36333478]
[1757140638952,0.92388149,110890.0,110880.0,0.36333478]
[1757140639144,1.25023627,110890.0,110880.0,0.36333478]
[1757140641049,1.25023627,110890.0,110880.0,0.42808085]
[1757140641349,1.25023627,110890.0,110880.0,0.36333478]
[1757140642151,1.25023627,110890.0,110880.0,0.42808085]
[1757140643253,1.25023627,110890.0,110880.0,0.10172607]
[1757140643447,1.25023627,110890.0,110880.0,0.42808085]
[1757140649258,0.92388149,110890.0,110880.0,0.42808085]
[1757140649457,1.25023627,110890.0,110880.0,0.42808085]
[1757140662663,1.25023627,110890.0,110880.0,0.36333478]
[1757140662863,1.25023627,110890.0,110880.0,0.42808085]
[1757140665370,1.25023627,110890.0,110880.0,0.52808085]
[1757140667178,1.25023627,110890.0,110880.0,0.20172607]
[1757140667372,1.25023627,110890.0,110880.0,0.52808085]
[1757140667676,1.35023627,110890.0,110880.0,0.52808085]
[1757140668375,1.35023627,110890.0,110880.0,0.20172607]
[1757140668781,1.35023627,110890.0,110880.0,0.52808085]
[1757140671977,1.35023627,110890.0,110880.0,0.16474607]
[1757140672372,0.53403627,110890.0,110880.0,0.16474607]
[1757140672578,1.35015627,110890.0,110880.0,0.18744607]
[1757140673177,1.35015627,110890.0,110880.0,0.1227]
[1757140679690,1.31391277,110890.0,110880.0,0.1227]
[1757140683993,1.02380149,110890.0,110880.0,0.1227]
[1757140684193,1.31391277,110890.0,110880.0,0.1227]
[1757140691200,1.31391277,110890.0,110880.0,0.18744607]
[1757140692305,1.31391277,110890.0,110880.0,0.13645]
[1757140694400,0.49779277,110890.0,110880.0,0.13645]
[1757140694902,1.02176149,110890.0,110880.0,0.20119607]
[1757140696801,1.02176149,110890.0,110880.0,0.13645]
[1757140706605,1.02176149,110890.0,110880.0,0.20119607]
[1757140709508,1.02364149,110890.0,110880.0,0.20119607]
[1757140709808,1.31375277,110890.0,110880.0,0.20119607]
[1757140723926,1.02364149,110890.0,110880.0,0.20119607]
[1757140724122,1.31375277,110890.0,110880.0,0.20119607]
[1757140741442,1.34996604,110890.0,110880.0,0.52752062]
[1757140742336,1.34996604,110890.0,110880.0,0.20119607]
[1757140742542,1.34996604,110890.0,110880.0,0.52752062]
[1757140746140,1.34996604,110890.0,110880.0,0.20119607]
[1757140746334,1.34996604,110890.0,110880.0,0.52752062]
[1757140747139,0.53400604,110890.0,110880.0,0.52752062]
[1757140747539,1.34976604,110890.0,110880.0,0.52752062]
[1757140749044,1.34976604,110890.0,110880.0,0.20119607]
[1757140749245,1.34976604,110890.0,110880.0,0.52752062]
[1757140751050,1.34976604,110890.0,110880.0,0.46277455]
[1757140751247,1.34976604,110890.0,110880.0,0.52752062]
[1757140756152,1.02344149,110890.0,110880.0,0.52752062]
[1757140756352,1.34976604,110890.0,110880.0,0.52752062]
[1757140762353,1.34976604,110890.0,110880.0,0.46277455]
[1757140764957,1.34976604,110890.0,110880.0,0.13645]
[1757140765151,1.34976604,110890.0,110880.0,0.46277455]
[1757140765456,1.02344149,110890.0,110880.0,0.46277455]
[1757140765656,1.34976604,110890.0,110880.0,0.46277455]
[1757140766550,1.02344149,110890.0,110880.0,0.46277455]
[1757140766750,1.34964604,110890.0,110880.0,0.46277455]
[1757140767354,1.34964604,110890.0,110880.0,0.52752062]
[1757140767555,1.02332149,110890.0,110880.0,0.52752062]
[1757140767857,1.34964604,110890.0,110880.0,0.52752062]
[1757140770556,1.02332149,110890.0,110880.0,0.52752062]
[1757140770760,1.34964604,110890.0,110880.0,0.52752062]
[1757140772752,1.02332149,110890.0,110880.0,0.52752062]
[1757140773053,1.34964604,110890.0,110880.0,0.52752062]
[1757140774857,1.02332149,110890.0,110880.0,0.52752062]
[1757140775060,1.34964604,110890.0,110880.0,0.52752062]
[1757140779361,1.34964604,110890.0,110880.0,0.20119607]
[1757140779854,1.34964604,110890.0,110880.0,0.52752062]
[1757140780856,1.02332149,110890.0,110880.0,0.52752062]
[1757140781062,1.34964604,110890.0,110880.0,0.52752062]
[1757140783864,1.02332149,110890.0,110880.0,0.52752062]